[Event "Early-Titled-Tuesday-Blitz-April-16-2024"]
[Site "Chess.com"]
[Date "2024.04.16"]
[Round "8"]
[White "Agibileg"]
[Black "Hikaru"]
[Result "0-1"]
[WhiteElo "2786"]
[BlackElo "3262"]
[TimeControl "180+1"]
[EndTime "9:32:17 PDT"]
[Termination "Hikaru won by resignation"]

1. d4 {[%clk 0:03:00]} 1... g6 {[%clk 0:02:59.1]} 2. c4 {[%clk 0:02:59.5]} 2...
Bg7 {[%clk 0:02:59.1]} 3. Nc3 {[%clk 0:02:59.5]} 3... c5 {[%clk 0:02:59]} 4. d5
{[%clk 0:02:59.8]} 4... Bxc3+ {[%clk 0:02:59]} 5. bxc3 {[%clk 0:03:00.7]} 5...
f5 {[%clk 0:02:59.2]} 6. g4 {[%clk 0:02:59.4]} 6... fxg4 {[%clk 0:02:56.1]} 7.
h3 {[%clk 0:02:59.6]} 7... d6 {[%clk 0:02:39.7]} 8. hxg4 {[%clk 0:02:53.5]} 8...
Bxg4 {[%clk 0:02:40.6]} 9. f3 {[%clk 0:02:41]} 9... Bd7 {[%clk 0:02:37.2]} 10.
Bg5 {[%clk 0:02:28.5]} 10... Qa5 {[%clk 0:02:36.8]} 11. Qb3 {[%clk 0:02:28.3]}
11... Na6 {[%clk 0:02:32.6]} 12. Bh3 {[%clk 0:02:22.1]} 12... O-O-O {[%clk
0:02:25.2]} 13. Rb1 {[%clk 0:02:16.9]} 13... b6 {[%clk 0:02:18.5]} 14. Bxd7+
{[%clk 0:02:16.7]} 14... Kxd7 {[%clk 0:02:13.4]} 15. Nh3 {[%clk 0:02:15.2]}
15... Nc7 {[%clk 0:02:11.2]} 16. Nf4 {[%clk 0:02:08.9]} 16... Nf6 {[%clk
0:02:11.5]} 17. Qc2 {[%clk 0:02:03.3]} 17... Rdf8 {[%clk 0:02:09.7]} 18. Rb3
{[%clk 0:01:55.3]} 18... Qa4 {[%clk 0:02:06.2]} 19. Qd3 {[%clk 0:01:10.3]} 19...
Qxa2 {[%clk 0:01:42]} 20. Rb1 {[%clk 0:01:09.5]} 20... Qa6 {[%clk 0:01:39.9]}
21. Kf2 {[%clk 0:01:08]} 21... Qc8 {[%clk 0:01:36.4]} 22. Ra1 {[%clk 0:01:04.7]}
22... Qb7 {[%clk 0:01:35.9]} 23. Qe3 {[%clk 0:00:58.5]} 23... Rf7 {[%clk
0:01:29.7]} 24. Kg2 {[%clk 0:00:55.1]} 24... Rg8 {[%clk 0:01:28.6]} 25. Ra2
{[%clk 0:00:39.1]} 25... a6 {[%clk 0:01:24.1]} 26. Rb2 {[%clk 0:00:36]} 26... b5
{[%clk 0:01:10.1]} 27. Ne6 {[%clk 0:00:36.1]} 27... Ncxd5 {[%clk 0:01:04.7]} 28.
cxd5 {[%clk 0:00:34.4]} 28... Qxd5 {[%clk 0:01:04.7]} 29. Bxf6 {[%clk
0:00:24.7]} 29... Qxe6 {[%clk 0:01:04.4]} 30. Qxe6+ {[%clk 0:00:23.7]} 30...
Kxe6 {[%clk 0:01:05.3]} 31. Bh4 {[%clk 0:00:23.1]} 31... Rf4 {[%clk 0:00:54.2]}
32. Bg3 {[%clk 0:00:20.8]} 32... Rc4 {[%clk 0:00:54.5]} 33. Rb3 {[%clk
0:00:14.8]} 33... h5 {[%clk 0:00:50.6]} 34. Ra1 {[%clk 0:00:14.9]} 34... Ra8
{[%clk 0:00:51.2]} 35. Be1 {[%clk 0:00:14.2]} 35... g5 {[%clk 0:00:33]} 36. Rxb5
{[%clk 0:00:14.1]} 36... axb5 {[%clk 0:00:30.3]} 37. Rxa8 {[%clk 0:00:15]} 37...
Ra4 {[%clk 0:00:30.4]} 38. Rb8 {[%clk 0:00:14.3]} 38... Ra2 {[%clk 0:00:29.5]}
39. Kf1 {[%clk 0:00:13.2]} 39... Rb2 {[%clk 0:00:29.9]} 40. Rg8 {[%clk
0:00:08.5]} 40... Kf6 {[%clk 0:00:29.7]} 41. Rf8+ {[%clk 0:00:07.9]} 41... Kg7
{[%clk 0:00:29.3]} 42. Re8 {[%clk 0:00:08.2]} 42... Kf7 {[%clk 0:00:29.8]} 43.
Rh8 {[%clk 0:00:08.6]} 43... h4 {[%clk 0:00:30.5]} 44. Rh7+ {[%clk 0:00:05.7]}
44... Kf6 {[%clk 0:00:30.9]} 45. Rh6+ {[%clk 0:00:06.1]} 45... Kg7 {[%clk
0:00:28.9]} 46. Re6 {[%clk 0:00:05.2]} 46... Kf7 {[%clk 0:00:29.2]} 47. Re4
{[%clk 0:00:05.4]} 47... e5 {[%clk 0:00:27.5]} 48. Rg4 {[%clk 0:00:04.9]} 48...
Kf6 {[%clk 0:00:27.5]} 49. Bf2 {[%clk 0:00:04.8]} 49... h3 {[%clk 0:00:25.6]}
50. Bg3 {[%clk 0:00:02.6]} 50... Rc2 {[%clk 0:00:20]} 51. Kg1 {[%clk 0:00:01.5]}
51... Rxc3 {[%clk 0:00:20.4]} 52. Kh2 {[%clk 0:00:01.7]} 52... b4 {[%clk
0:00:20.7]} 53. Kxh3 {[%clk 0:00:02.1]} 53... b3 {[%clk 0:00:21.1]} 54. Bf2
{[%clk 0:00:02.4]} 54... b2 {[%clk 0:00:20.8]} 55. Rg1 {[%clk 0:00:02.7]} 55...
Rc1 {[%clk 0:00:20.9]} 56. Be3 {[%clk 0:00:01.4]} 56... Rxg1 {[%clk 0:00:20.9]}
0-1

[Event "Early-Titled-Tuesday-Blitz-April-16-2024"]
[Site "Chess.com"]
[Date "2024.04.16"]
[Round "8"]
[White "xasid81"]
[Black "Hudijegszid"]
[Result "1-0"]
[WhiteElo "2632"]
[BlackElo "2466"]
[TimeControl "180+1"]
[EndTime "9:32:17 PDT"]
[Termination "xasid81 won by checkmate"]

1. f4 {[%clk 0:03:00.9]} 1... e5 {[%clk 0:02:51.6]} 2. fxe5 {[%clk 0:03:00.2]}
2... d6 {[%clk 0:02:51.9]} 3. exd6 {[%clk 0:02:58.2]} 3... Bxd6 {[%clk
0:02:52.8]} 4. Nf3 {[%clk 0:02:58.6]} 4... g5 {[%clk 0:02:51.9]} 5. g3 {[%clk
0:02:57.6]} 5... g4 {[%clk 0:02:43.4]} 6. Nh4 {[%clk 0:02:54.1]} 6... Ne7 {[%clk
0:02:43.9]} 7. e4 {[%clk 0:02:43.6]} 7... Ng6 {[%clk 0:02:37.2]} 8. Nf5 {[%clk
0:02:41.9]} 8... h5 {[%clk 0:02:19.6]} 9. d4 {[%clk 0:02:35.1]} 9... Nc6 {[%clk
0:02:13.9]} 10. Bg2 {[%clk 0:02:26]} 10... h4 {[%clk 0:02:10.5]} 11. Qxg4 {[%clk
0:02:16.3]} 11... Nxd4 {[%clk 0:02:06.7]} 12. O-O {[%clk 0:02:06.2]} 12... hxg3
{[%clk 0:02:01.5]} 13. hxg3 {[%clk 0:02:02.5]} 13... Nxc2 {[%clk 0:01:45.7]} 14.
Rd1 {[%clk 0:01:03.4]} 14... Nxa1 {[%clk 0:01:16.5]} 15. Bg5 {[%clk 0:00:58.5]}
15... Qd7 {[%clk 0:01:12.9]} 16. Na3 {[%clk 0:00:48.4]} 16... b6 {[%clk
0:00:56.4]} 17. Nc4 {[%clk 0:00:40.6]} 17... Bc5+ {[%clk 0:00:46.9]} 18. Kf1
{[%clk 0:00:40]} 18... Ba6 {[%clk 0:00:13.7]} 19. Rxd7 {[%clk 0:00:29.3]} 19...
Bxc4+ {[%clk 0:00:14]} 20. Ke1 {[%clk 0:00:29.5]} 20... Kxd7 {[%clk 0:00:13.1]}
21. Qd1+ {[%clk 0:00:17.7]} 21... Ke8 {[%clk 0:00:10.5]} 22. Qxa1 {[%clk
0:00:14.9]} 22... Ne5 {[%clk 0:00:10.6]} 23. Bf6 {[%clk 0:00:11.2]} 23... Nd3+
{[%clk 0:00:09.1]} 24. Kd2 {[%clk 0:00:11.2]} 24... Rh2 {[%clk 0:00:09.7]} 25.
Nh4 {[%clk 0:00:07.7]} 25... Rd8 {[%clk 0:00:04.4]} 26. Bxd8 {[%clk 0:00:06.9]}
26... Kxd8 {[%clk 0:00:05.3]} 27. Kc3 {[%clk 0:00:05.9]} 27... b5 {[%clk
0:00:05.1]} 28. a3 {[%clk 0:00:04.7]} 28... a5 {[%clk 0:00:04.9]} 29. b3 {[%clk
0:00:04.6]} 29... Bd6 {[%clk 0:00:02.4]} 30. Qd1 {[%clk 0:00:03]} 30... Be5+
{[%clk 0:00:02.8]} 31. Kc2 {[%clk 0:00:03.4]} 31... Bxb3+ {[%clk 0:00:01.7]} 32.
Kxb3 {[%clk 0:00:03.1]} 32... c5 {[%clk 0:00:02.2]} 33. Qxd3+ {[%clk 0:00:03.2]}
33... Kc7 {[%clk 0:00:03]} 34. Qxb5 {[%clk 0:00:03.7]} 34... Bxg3 {[%clk
0:00:03]} 35. Nf5 {[%clk 0:00:03.3]} 35... Rxg2 {[%clk 0:00:03.1]} 36. Nxg3
{[%clk 0:00:03.6]} 36... Rxg3+ {[%clk 0:00:04]} 37. Kc4 {[%clk 0:00:03.6]} 37...
Rg6 {[%clk 0:00:04.8]} 38. Qxa5+ {[%clk 0:00:03.1]} 38... Kd7 {[%clk 0:00:04.8]}
39. Qd2+ {[%clk 0:00:03.4]} 39... Rd6 {[%clk 0:00:04.7]} 40. Qf4 {[%clk
0:00:03.9]} 40... Ke7 {[%clk 0:00:04.2]} 41. Qe5+ {[%clk 0:00:03.9]} 41... Re6
{[%clk 0:00:04.7]} 42. Qxc5+ {[%clk 0:00:04.1]} 42... Kf6 {[%clk 0:00:04.9]} 43.
Qd4+ {[%clk 0:00:04.3]} 43... Kg5 {[%clk 0:00:04.8]} 44. a4 {[%clk 0:00:05.2]}
44... Kf4 {[%clk 0:00:05.2]} 45. Kd3 {[%clk 0:00:04.5]} 45... Ra6 {[%clk
0:00:04.4]} 46. Qf2+ {[%clk 0:00:04.6]} 46... Ke5 {[%clk 0:00:04.4]} 47. Qf5+
{[%clk 0:00:05.3]} 47... Kd6 {[%clk 0:00:04.4]} 48. Qd5+ {[%clk 0:00:05.2]}
48... Kc7 {[%clk 0:00:04.7]} 49. Qc4+ {[%clk 0:00:05.5]} 49... Kb6 {[%clk
0:00:04.6]} 50. Qb5+ {[%clk 0:00:06]} 50... Ka7 {[%clk 0:00:04.6]} 51. e5 {[%clk
0:00:06.6]} 51... Re6 {[%clk 0:00:04.6]} 52. Ke4 {[%clk 0:00:06.1]} 52... Rb6
{[%clk 0:00:04.9]} 53. Qd7+ {[%clk 0:00:06]} 53... Rb7 {[%clk 0:00:05.6]} 54.
Qd4+ {[%clk 0:00:06.3]} 54... Ka6 {[%clk 0:00:05.7]} 55. Kf5 {[%clk 0:00:06.3]}
55... Ka5 {[%clk 0:00:05.3]} 56. Qc4 {[%clk 0:00:05.3]} 56... Re7 {[%clk
0:00:04.7]} 57. Qb5# {[%clk 0:00:05.4]} 1-0

[Event "Early-Titled-Tuesday-Blitz-April-16-2024"]
[Site "Chess.com"]
[Date "2024.04.16"]
[Round "8"]
[White "rhwr"]
[Black "ExchangeAB"]
[Result "1-0"]
[WhiteElo "2290"]
[BlackElo "2411"]
[TimeControl "180+1"]
[EndTime "9:32:20 PDT"]
[Termination "rhwr won on time"]

1. e4 {[%clk 0:02:59.7]} 1... c6 {[%clk 0:02:57.5]} 2. d4 {[%clk 0:02:59.2]}
2... d5 {[%clk 0:02:58.4]} 3. Nc3 {[%clk 0:02:59.5]} 3... dxe4 {[%clk
0:02:53.3]} 4. Nxe4 {[%clk 0:03:00.4]} 4... Nf6 {[%clk 0:02:53.2]} 5. Nxf6+
{[%clk 0:03:00]} 5... exf6 {[%clk 0:02:54.1]} 6. c3 {[%clk 0:03:00.2]} 6... Bd6
{[%clk 0:02:53.9]} 7. Bd3 {[%clk 0:03:00.6]} 7... O-O {[%clk 0:02:54.2]} 8. Ne2
{[%clk 0:03:01.4]} 8... Na6 {[%clk 0:02:51.8]} 9. O-O {[%clk 0:03:01.7]} 9...
Nc7 {[%clk 0:02:51.9]} 10. Bf4 {[%clk 0:02:55.1]} 10... Bg4 {[%clk 0:02:50.7]}
11. f3 {[%clk 0:02:54.6]} 11... Bh5 {[%clk 0:02:50.1]} 12. Bxd6 {[%clk
0:02:46.1]} 12... Qxd6 {[%clk 0:02:49.2]} 13. Ng3 {[%clk 0:02:46.8]} 13... Bg6
{[%clk 0:02:49]} 14. Ne4 {[%clk 0:02:45.2]} 14... Qd7 {[%clk 0:02:35.1]} 15. Nc5
{[%clk 0:02:37.8]} 15... Qc8 {[%clk 0:02:34.9]} 16. Bxg6 {[%clk 0:02:23.2]}
16... hxg6 {[%clk 0:02:33.5]} 17. Re1 {[%clk 0:02:23.3]} 17... b6 {[%clk
0:02:30.4]} 18. Ne4 {[%clk 0:02:19.1]} 18... f5 {[%clk 0:02:28.3]} 19. Nd6
{[%clk 0:02:16]} 19... Qd7 {[%clk 0:02:27.9]} 20. Nc4 {[%clk 0:02:16.5]} 20...
f6 {[%clk 0:02:24.8]} 21. Qb3 {[%clk 0:02:14.4]} 21... Nd5 {[%clk 0:02:23.4]}
22. Ne3 {[%clk 0:02:11.2]} 22... f4 {[%clk 0:02:22.1]} 23. Nxd5 {[%clk
0:02:10.5]} 23... cxd5 {[%clk 0:02:23]} 24. Re2 {[%clk 0:02:08.5]} 24... Rae8
{[%clk 0:02:21.6]} 25. Rae1 {[%clk 0:02:08.4]} 25... Rxe2 {[%clk 0:02:20.3]} 26.
Rxe2 {[%clk 0:02:08.9]} 26... g5 {[%clk 0:02:20.4]} 27. Kf2 {[%clk 0:02:02.8]}
27... Kh7 {[%clk 0:02:16.3]} 28. Qc2+ {[%clk 0:01:55.7]} 28... Kg8 {[%clk
0:02:15.9]} 29. Qg6 {[%clk 0:01:54.2]} 29... Qf7 {[%clk 0:02:09.9]} 30. Qf5
{[%clk 0:01:46.8]} 30... g6 {[%clk 0:01:53.6]} 31. Qe6 {[%clk 0:01:45.3]} 31...
Rd8 {[%clk 0:01:48.9]} 32. Qc6 {[%clk 0:01:42.3]} 32... Kg7 {[%clk 0:01:38.6]}
33. Re6 {[%clk 0:01:36.7]} 33... Rd7 {[%clk 0:01:31.3]} 34. a4 {[%clk
0:01:31.7]} 34... Re7 {[%clk 0:01:31.1]} 35. Rd6 {[%clk 0:01:22.4]} 35... Rc7
{[%clk 0:01:03.9]} 36. Qxd5 {[%clk 0:01:18.6]} 36... Qe7 {[%clk 0:01:03.8]} 37.
Re6 {[%clk 0:01:16.5]} 37... Qf7 {[%clk 0:00:58.1]} 38. Qe4 {[%clk 0:01:03.6]}
38... Qd7 {[%clk 0:00:55.1]} 39. d5 {[%clk 0:01:01.3]} 39... Kf7 {[%clk
0:00:40.5]} 40. d6 {[%clk 0:00:16.2]} 40... Qxe6 {[%clk 0:00:39.9]} 41. dxc7
{[%clk 0:00:16]} 41... Qc8 {[%clk 0:00:23.3]} 42. Qc6 {[%clk 0:00:15.3]} 42...
Ke7 {[%clk 0:00:22.1]} 43. b4 {[%clk 0:00:13.8]} 43... a5 {[%clk 0:00:10.7]} 44.
b5 {[%clk 0:00:10.2]} 44... f5 {[%clk 0:00:08.6]} 45. Qxb6 {[%clk 0:00:10.1]}
45... g4 {[%clk 0:00:08.1]} 46. Qc5+ {[%clk 0:00:09.6]} 46... Ke6 {[%clk
0:00:07]} 47. Qc6+ {[%clk 0:00:09.7]} 47... Ke7 {[%clk 0:00:05.2]} 48. b6 {[%clk
0:00:10.4]} 48... g3+ {[%clk 0:00:03.9]} 49. hxg3 {[%clk 0:00:10.3]} 49... fxg3+
{[%clk 0:00:04.2]} 50. Kxg3 {[%clk 0:00:10.9]} 50... f4+ {[%clk 0:00:04.3]} 51.
Kf2 {[%clk 0:00:10.1]} 51... Qf5 {[%clk 0:00:03.9]} 52. c8=Q {[%clk 0:00:03.2]}
52... Qc2+ {[%clk 0:00:03.9]} 53. Kg1 {[%clk 0:00:03.6]} 53... Qd1+ {[%clk
0:00:03.6]} 54. Kh2 {[%clk 0:00:03.7]} 1-0

[Event "Early-Titled-Tuesday-Blitz-April-16-2024"]
[Site "Chess.com"]
[Date "2024.04.16"]
[Round "8"]
[White "alpope"]
[Black "BashirliSaadat"]
[Result "1-0"]
[WhiteElo "2523"]
[BlackElo "2349"]
[TimeControl "180+1"]
[EndTime "9:32:21 PDT"]
[Termination "alpope won on time"]

1. g3 {[%clk 0:03:00.9]} 1... d5 {[%clk 0:02:58.6]} 2. Bg2 {[%clk 0:03:00.7]}
2... Nf6 {[%clk 0:02:57.1]} 3. b3 {[%clk 0:03:00.8]} 3... c6 {[%clk 0:02:57.1]}
4. Bb2 {[%clk 0:03:00.9]} 4... Bf5 {[%clk 0:02:56.4]} 5. d3 {[%clk 0:02:59.5]}
5... e6 {[%clk 0:02:50.1]} 6. Nd2 {[%clk 0:02:59.7]} 6... Nbd7 {[%clk
0:02:49.1]} 7. Ngf3 {[%clk 0:02:56.7]} 7... h6 {[%clk 0:02:47.1]} 8. O-O {[%clk
0:02:55.5]} 8... Bd6 {[%clk 0:02:44.6]} 9. Re1 {[%clk 0:02:54.7]} 9... Bg4
{[%clk 0:02:30.7]} 10. e4 {[%clk 0:02:53.6]} 10... dxe4 {[%clk 0:02:25.1]} 11.
dxe4 {[%clk 0:02:53.1]} 11... Ne5 {[%clk 0:02:16.7]} 12. h3 {[%clk 0:02:32.3]}
12... Nxf3+ {[%clk 0:02:10.6]} 13. Nxf3 {[%clk 0:02:31.6]} 13... Bxf3 {[%clk
0:02:09.9]} 14. Qxf3 {[%clk 0:02:31.4]} 14... Be7 {[%clk 0:02:07.1]} 15. Rad1
{[%clk 0:01:53.7]} 15... Qc7 {[%clk 0:02:00.8]} 16. e5 {[%clk 0:01:40.9]} 16...
Nd5 {[%clk 0:01:56.7]} 17. c4 {[%clk 0:01:38.5]} 17... Nb6 {[%clk 0:01:54.6]}
18. Rd4 {[%clk 0:01:23.4]} 18... O-O {[%clk 0:01:52.6]} 19. Qh5 {[%clk 0:01:18]}
19... Bg5 {[%clk 0:01:29.8]} 20. Rg4 {[%clk 0:00:46]} 20... g6 {[%clk
0:01:25.7]} 21. Rxg5 {[%clk 0:00:46.2]} 21... hxg5 {[%clk 0:01:24.7]} 22. Qxg5
{[%clk 0:00:43.3]} 22... Rfc8 {[%clk 0:01:07.8]} 23. h4 {[%clk 0:00:39]} 23...
Qd8 {[%clk 0:01:07.1]} 24. Qg4 {[%clk 0:00:39.2]} 24... Qd2 {[%clk 0:01:04.3]}
25. Re2 {[%clk 0:00:37.9]} 25... Qh6 {[%clk 0:01:02]} 26. Re1 {[%clk 0:00:31.2]}
26... Rd8 {[%clk 0:01:00.3]} 27. Bc1 {[%clk 0:00:30.8]} 27... Qg7 {[%clk
0:00:52.6]} 28. Bg5 {[%clk 0:00:30.7]} 28... Rd7 {[%clk 0:00:44.3]} 29. Bf6
{[%clk 0:00:30.5]} 29... Qh6 {[%clk 0:00:42.5]} 30. Be4 {[%clk 0:00:27.1]} 30...
Qh5 {[%clk 0:00:36.2]} 31. Qxh5 {[%clk 0:00:23.3]} 31... gxh5 {[%clk 0:00:37.1]}
32. g4 {[%clk 0:00:24.2]} 32... Rd4 {[%clk 0:00:29.7]} 33. gxh5 {[%clk
0:00:22.9]} 33... Nd7 {[%clk 0:00:25.2]} 34. h6 {[%clk 0:00:16.3]} 34... Nxf6
{[%clk 0:00:24.1]} 35. exf6 {[%clk 0:00:17.2]} 35... Rad8 {[%clk 0:00:20.8]} 36.
Re3 {[%clk 0:00:17]} 36... Kh8 {[%clk 0:00:19.5]} 37. Kf1 {[%clk 0:00:16.4]}
37... Rg8 {[%clk 0:00:18.5]} 38. h7 {[%clk 0:00:16.4]} 38... Rg4 {[%clk
0:00:18.4]} 39. Bc2 {[%clk 0:00:15.6]} 39... Rxh4 {[%clk 0:00:18]} 40. Rg3
{[%clk 0:00:15.8]} 40... Rhg4 {[%clk 0:00:18.1]} 41. Rh3 {[%clk 0:00:15.5]}
41... Rdf4 {[%clk 0:00:16]} 42. Ke2 {[%clk 0:00:15]} 42... Rd4 {[%clk
0:00:09.1]} 43. Ke3 {[%clk 0:00:15.2]} 43... c5 {[%clk 0:00:08.6]} 44. f3 {[%clk
0:00:15.3]} 44... Rg2 {[%clk 0:00:08]} 45. Be4 {[%clk 0:00:15.3]} 45... Rdd2
{[%clk 0:00:05.8]} 46. Rh5 {[%clk 0:00:14.6]} 46... b6 {[%clk 0:00:05.3]} 47.
Re5 {[%clk 0:00:13.1]} 47... Rde2+ {[%clk 0:00:04]} 48. Kf4 {[%clk 0:00:13.5]}
48... Rd2 {[%clk 0:00:04.4]} 49. Rg5 {[%clk 0:00:11.6]} 49... Rxg5 {[%clk
0:00:03.7]} 50. Kxg5 {[%clk 0:00:12.5]} 50... Rxa2 {[%clk 0:00:03.8]} 51. Kf4
{[%clk 0:00:13]} 51... Rb2 {[%clk 0:00:04.2]} 52. Ke5 {[%clk 0:00:13.6]} 52...
Rxb3 {[%clk 0:00:04.5]} 53. Kd6 {[%clk 0:00:14.2]} 53... a5 {[%clk 0:00:04.4]}
54. Ke7 {[%clk 0:00:14.7]} 54... a4 {[%clk 0:00:03.4]} 55. Kxf7 {[%clk
0:00:15.2]} 55... a3 {[%clk 0:00:02.6]} 56. Ke7 {[%clk 0:00:12.2]} 56... a2
{[%clk 0:00:01.2]} 57. f7 {[%clk 0:00:12.6]} 1-0

[Event "Early-Titled-Tuesday-Blitz-April-16-2024"]
[Site "Chess.com"]
[Date "2024.04.16"]
[Round "8"]
[White "WiktoriaPOL"]
[Black "Heinza9"]
[Result "1-0"]
[WhiteElo "2385"]
[BlackElo "2320"]
[TimeControl "180+1"]
[EndTime "9:32:23 PDT"]
[Termination "WiktoriaPOL won on time"]

1. c4 {[%clk 0:02:32.5]} 1... f5 {[%clk 0:02:58.9]} 2. Nc3 {[%clk 0:02:32.7]}
2... Nf6 {[%clk 0:02:59.1]} 3. g3 {[%clk 0:02:32.3]} 3... g6 {[%clk 0:02:59.1]}
4. Bg2 {[%clk 0:02:32.8]} 4... Bg7 {[%clk 0:02:59.5]} 5. e3 {[%clk 0:02:32.8]}
5... O-O {[%clk 0:02:59.7]} 6. Nge2 {[%clk 0:02:33.1]} 6... d6 {[%clk
0:03:00.1]} 7. O-O {[%clk 0:02:32.3]} 7... e5 {[%clk 0:03:00.4]} 8. d3 {[%clk
0:02:32.8]} 8... Nc6 {[%clk 0:02:59.9]} 9. Rb1 {[%clk 0:02:32.5]} 9... a5 {[%clk
0:02:58.1]} 10. a3 {[%clk 0:02:32.5]} 10... Be6 {[%clk 0:02:49.6]} 11. b4 {[%clk
0:02:31.9]} 11... axb4 {[%clk 0:02:50]} 12. axb4 {[%clk 0:02:32.8]} 12... Qd7
{[%clk 0:02:45.2]} 13. b5 {[%clk 0:02:31.3]} 13... Na5 {[%clk 0:02:45.5]} 14.
Nd5 {[%clk 0:02:28.2]} 14... h6 {[%clk 0:02:26.5]} 15. Bd2 {[%clk 0:02:21.4]}
15... Bxd5 {[%clk 0:02:21.3]} 16. cxd5 {[%clk 0:02:21.1]} 16... b6 {[%clk
0:02:20.8]} 17. f4 {[%clk 0:02:11.6]} 17... g5 {[%clk 0:02:09.9]} 18. e4 {[%clk
0:02:06.8]} 18... fxe4 {[%clk 0:02:02.3]} 19. dxe4 {[%clk 0:01:57.8]} 19... exf4
{[%clk 0:01:59.1]} 20. gxf4 {[%clk 0:01:55.7]} 20... gxf4 {[%clk 0:01:49.2]} 21.
Nxf4 {[%clk 0:01:52.5]} 21... Ng4 {[%clk 0:01:42.6]} 22. Bh3 {[%clk 0:01:38.9]}
22... Bd4+ {[%clk 0:01:39.5]} 23. Kg2 {[%clk 0:01:28.8]} 23... h5 {[%clk
0:01:13.4]} 24. Nxh5 {[%clk 0:00:56.1]} 24... Rxf1 {[%clk 0:01:12.6]} 25. Qxf1
{[%clk 0:00:55.9]} 25... Rf8 {[%clk 0:01:07]} 26. Bf4 {[%clk 0:00:30.6]} 26...
Ne3+ {[%clk 0:00:29.8]} 27. Bxe3 {[%clk 0:00:25.9]} 27... Rxf1 {[%clk
0:00:29.4]} 28. Bxd7 {[%clk 0:00:22.6]} 28... Rxb1 {[%clk 0:00:28.8]} 29. Bxd4
{[%clk 0:00:20.1]} 29... Nc4 {[%clk 0:00:24.7]} 30. Nf6+ {[%clk 0:00:16.4]}
30... Kf7 {[%clk 0:00:24.1]} 31. h4 {[%clk 0:00:13.3]} 31... Ne5 {[%clk
0:00:23.2]} 32. Bxe5 {[%clk 0:00:04.9]} 32... dxe5 {[%clk 0:00:23.3]} 33. Ng4
{[%clk 0:00:05.3]} 33... Ke7 {[%clk 0:00:22.7]} 34. Bc6 {[%clk 0:00:05.5]} 34...
Kd6 {[%clk 0:00:23]} 35. h5 {[%clk 0:00:05.2]} 35... Ra1 {[%clk 0:00:21.2]} 36.
h6 {[%clk 0:00:05.2]} 36... Ra2+ {[%clk 0:00:19.1]} 37. Kg3 {[%clk 0:00:05.3]}
37... Ra3+ {[%clk 0:00:19]} 38. Kh4 {[%clk 0:00:05.9]} 38... Ra1 {[%clk
0:00:16.8]} 39. h7 {[%clk 0:00:05.1]} 39... Rh1+ {[%clk 0:00:16.6]} 40. Kg5
{[%clk 0:00:05.3]} 40... Rxh7 {[%clk 0:00:16.1]} 41. Kf6 {[%clk 0:00:04.8]}
41... Rh4 {[%clk 0:00:13.8]} 42. Kf5 {[%clk 0:00:03.5]} 42... Rh5+ {[%clk
0:00:10.8]} 43. Kg6 {[%clk 0:00:03.5]} 43... Rh4 {[%clk 0:00:10.7]} 44. Kg5
{[%clk 0:00:03.3]} 44... Rh3 {[%clk 0:00:09.5]} 45. Nh6 {[%clk 0:00:03.2]} 45...
Rg3+ {[%clk 0:00:08.2]} 46. Kf5 {[%clk 0:00:03.3]} 46... Rf3+ {[%clk 0:00:07.7]}
47. Kg5 {[%clk 0:00:03.1]} 47... Rf4 {[%clk 0:00:07.7]} 48. Nf7+ {[%clk
0:00:03]} 48... Kc5 {[%clk 0:00:07.6]} 49. Nxe5 {[%clk 0:00:03.1]} 49... Rxe4
{[%clk 0:00:07.7]} 50. Nd7+ {[%clk 0:00:03.4]} 50... Kd6 {[%clk 0:00:07.8]} 51.
Kf5 {[%clk 0:00:03.6]} 51... Rd4 {[%clk 0:00:07.4]} 52. Nf6 {[%clk 0:00:03.6]}
52... Kc5 {[%clk 0:00:07]} 53. Ne4+ {[%clk 0:00:03.8]} 53... Kc4 {[%clk
0:00:06.1]} 54. Nf6 {[%clk 0:00:03.3]} 54... Kc5 {[%clk 0:00:05.7]} 55. Nd7+
{[%clk 0:00:03.6]} 55... Kd6 {[%clk 0:00:06.1]} 56. Ne5 {[%clk 0:00:03.5]} 56...
Rd2 {[%clk 0:00:05.4]} 57. Nc4+ {[%clk 0:00:03.4]} 57... Kc5 {[%clk 0:00:05.6]}
58. Nxd2 {[%clk 0:00:04.3]} 58... Kd4 {[%clk 0:00:05.5]} 59. Ke6 {[%clk
0:00:04.6]} 1-0